bitfinex-derivatives/quotes_SOLF0:USTF0_20250221
["timestamp","ask_amount","ask_price","bid_price","bid_amount"]
[1740155723642,1.6937,175.03,174.77,1.02677331]
[1740155723837,0.03813221,174.91,174.88,0.04194669]
[1740155724242,1.6937,175.03,174.76,10.24]
[1740155724444,0.0428051,174.91,174.88,5.75705209]
[1740155724643,0.0428051,174.91,174.89,1.824]
[1740155724944,0.04143369,174.92,174.89,1.824]
[1740155725342,5.7157,174.92,174.85,5.7176]
[1740155725547,0.04139627,174.92,174.89,0.04188799]
[1740155725742,1.6937,175.03,174.89,0.04188799]
[1740155725955,0.03846635,174.86,174.81,5.719]
[1740155726143,1.05068667,175.02,174.81,5.719]
[1740155726345,0.04141903,174.85,174.82,0.03740085]
[1740155726544,1.05068667,175.0,174.82,5.7187]
[1740155726751,0.03697512,174.85,174.82,0.03955288]
[1740155726942,1.05068667,175.0,174.77,1.7074]
[1740155727143,0.04119014,174.85,174.82,0.0396966]
[1740155727445,1.05068667,175.0,174.79,1.8509]
[1740155727648,0.04157218,174.85,174.82,0.03734723]
[1740155727842,17.14,174.98,174.79,1.8509]
[1740155728040,0.03769738,174.85,174.82,0.03609557]
[1740155728246,1.8323,174.95,174.79,1.8509]
[1740155728446,0.0428051,174.85,174.82,0.04241381]
[1740155728646,5.717,174.88,174.82,5.7186]
[1740155728952,0.03674972,174.85,174.82,0.03608045]
[1740155729146,194.0,174.97,174.86,5.7173]
[1740155729341,194.0,174.97,174.79,1.8509]
[1740155729342,1.8323,175.0,174.79,1.8509]
[1740155730249,5.7168,174.89,174.88,0.04158102]
[1740155730441,1.8323,175.0,174.79,1.8509]
[1740155730648,1.8323,175.0,174.87,0.04251031]
[1740155730951,1.05070761,174.99,174.79,1.8509]
[1740155731153,194.0,174.98,174.79,1.8509]
[1740155731448,12.47890761,174.97,174.8,5.7194]
[1740155731649,1.05070761,174.96,174.79,1.8509]
[1740155732156,5.7182,174.85,174.8,5.7194]
[1740155732453,11.4282,174.97,174.79,7.5704]
[1740155732652,0.03947794,174.84,174.81,0.0388763]
[1740155732856,1.05099991,174.95,174.79,1.8509]
[1740155733155,0.0389294,174.84,174.81,0.03742104]
[1740155733353,1.05099991,174.93,174.79,1.8509]
[1740155733554,0.03794461,174.84,174.81,0.03805861]
[1740155733756,3.5238,174.92,174.79,1.8509]
[1740155733959,0.04317514,174.84,174.81,0.03621532]
[1740155734255,20.6638,174.92,174.79,1.8509]
[1740155734656,0.04217386,174.84,174.81,0.03732893]
[1740155735159,5.7172,174.88,174.82,5.7188]
[1740155735360,0.03825189,174.84,174.81,0.03652565]
[1740155735652,3.5238,174.92,174.79,1.8509]
[1740155736053,0.03731323,174.84,174.81,0.04012478]
[1740155736552,0.0432222,174.84,174.81,0.03970342]
[1740155736952,5.7615222,174.84,174.81,0.03970342]
[1740155737353,0.0432222,174.84,174.81,0.03970342]
[1740155737951,5.7615222,174.84,174.81,5.75880342]
[1740155738159,0.0432222,174.84,174.81,0.03970342]
[1740155739258,0.0432222,174.84,174.83,5.7185]
[1740155741665,0.0432222,174.84,174.81,0.03970342]
[1740155743365,0.0432222,174.84,174.82,5.7189]
[1740155743963,0.0432222,174.84,174.81,0.03970342]
[1740155744467,0.0432222,174.84,174.83,5.7185]
[1740155746170,5.7163,174.9,174.87,5.717]
[1740155746365,1.7902,174.94,174.79,1.8509]
[1740155746571,3.571,174.97,174.79,1.8509]
[1740155747371,3.571,174.97,174.86,0.03933615]
[1740155747571,3.571,174.97,174.8,11.4391]
[1740155747771,3.571,174.97,174.9,0.04114346]
[1740155748571,5.7156,174.92,174.9,0.04114346]
[1740155749077,3.571,174.97,174.9,0.04114346]
[1740155749579,5.7156,174.93,174.9,0.04114346]
[1740155749871,3.571,174.97,174.9,0.04114346]
[1740155750079,3.571,174.97,174.84,5.7181]
[1740155750271,20.711,174.97,174.79,1.8509]
[1740155751177,5.7175,174.87,174.79,1.8509]
[1740155751378,0.03865043,174.9,174.86,0.03847586]
[1740155751576,20.711,174.97,174.79,1.8509]
[1740155751777,5.7175,174.87,174.86,0.03768921]
[1740155751979,0.03636965,174.9,174.79,1.8509]
[1740155752175,5.7169,174.88,174.84,5.718]
[1740155752381,20.711,174.97,174.85,0.04316294]
[1740155752580,0.04167056,174.86,174.85,0.04316294]
[1740155752881,5.75897056,174.87,174.84,0.0366389]
[1740155753277,20.711,174.97,174.79,1.8509]
[1740155753482,0.03691098,174.87,174.84,0.03676514]
[1740155753682,20.711,174.97,174.79,1.8509]
[1740155753884,5.7179,174.85,174.84,0.04339364]
[1740155754279,20.711,174.97,174.79,1.8509]
[1740155754483,0.04159397,174.86,174.83,5.7545099]
[1740155754678,20.711,174.97,174.79,1.8509]
[1740155754978,5.7173,174.87,174.83,5.75519543]
[1740155755178,0.04167056,174.9,174.79,1.8509]
[1740155755378,1.05086658,174.96,174.83,0.04028058]
[1740155755574,0.04167056,174.86,174.79,1.8509]
[1740155755785,5.7173,174.87,174.86,0.03852972]
[1740155755984,20.711,174.97,174.79,1.8509]
[1740155756182,5.7172,174.87,174.85,0.03625566]
[1740155756481,5.7172,174.87,174.84,5.718]
[1740155756677,5.7172,174.87,174.84,0.03919753]
[1740155756884,5.7178,174.86,174.84,0.03919753]
[1740155757483,0.03656438,174.88,174.84,0.03919753]
[1740155757484,5.7179,174.85,174.84,0.03919753]
[1740155759482,5.7188,174.83,174.77,1.7074]
[1740155759678,17.14,174.93,174.77,1.7074]
[1740155759883,1.8068,174.92,174.79,5.7198]
[1740155760081,5.7187,174.83,174.75,149.62]
[1740155760285,5.7187,174.83,174.79,5.7196]
[1740155760480,0.04251248,174.83,174.79,0.03758106]
[1740155760675,1.8068,174.92,174.79,0.03758106]
[1740155760882,1.8068,174.92,174.76,0.0902]
[1740155761081,5.7168,174.89,174.76,0.0902]
[1740155761482,5.7168,174.89,174.86,5.7173]
[1740155761981,0.0383556,174.89,174.88,5.7169]
[1740155763079,5.56e-05,174.89,174.88,5.7169]
[1740155763282,7.4634,174.99,174.87,1.732]
[1740155763484,1.8625,175.01,174.87,1.8222]
[1740155763789,157.27114621,175.05,174.87,1.8222]
[1740155763987,5.7124,175.02,174.97,5.7137]
[1740155764385,5.7124,175.02,174.98,0.04059943]
[1740155764590,5.7132,175.0,174.98,0.04059943]
[1740155764986,5.7133,174.99,174.98,0.04059943]
[1740155765285,174.41114621,175.05,174.87,1.8222]
[1740155765491,5.7159,174.92,174.86,5.7172]
[1740155765691,1.8625,174.98,174.86,5.7172]
[1740155765986,5.7166,174.89,174.85,7.84939855]
[1740155766286,1.8625,174.98,174.85,7.84939855]
[1740155766483,0.03756654,174.89,174.85,7.88872762]
[1740155766683,5.7176,174.86,174.85,7.84939855]
[1740155766883,5.7176,174.86,174.85,0.03966741]
[1740155767186,0.0363805,174.89,174.74,31.22280489]
[1740155767392,1.05097198,174.95,174.74,31.13590489]
[1740155767791,5.7193,174.81,174.75,5.7211]
[1740155768086,5.7193,174.81,174.74,31.13590489]
[1740155768281,5.7189,174.83,174.76,5.7205]
[1740155768482,0.03769924,174.79,174.76,5.75748536]
[1740155768889,1.05118371,174.95,174.76,5.7205]
[1740155769085,0.03851443,174.79,174.76,5.76026291]
[1740155769389,1.05118371,174.95,174.84,0.03626138]
[1740155769593,0.03692219,174.79,174.76,5.7205]
[1740155769783,1.05118371,174.95,174.73,62.15734546]
[1740155769986,1.14324911,174.94,174.7,1.7417]
[1740155770184,1.05118371,174.93,174.7,1.7417]
[1740155770393,1.14337983,174.92,174.7,1.7417]
[1740155770584,0.04332647,174.83,174.7,1.7417]
[1740155770784,10.2,174.86,174.68,1.7029]
[1740155770982,4.59998371,174.85,174.68,1.7029]
[1740155771184,3.5488,174.85,174.7,5.7228]
[1740155771382,1.05155198,174.84,174.68,1.7029]
[1740155771788,10.04109873,174.89,174.68,1.7029]
[1740155771990,10.04109873,174.89,174.74,0.04180954]
[1740155772186,10.04109873,174.89,174.73,10.2]
[1740155772388,5.7178,174.86,174.74,2.0619]
[1740155772590,1.6921,174.95,174.74,2.0619]
[1740155772890,1.6921,174.95,174.85,5.7178]
[1740155773194,0.03696488,174.86,174.83,0.03743115]
[1740155773390,1.6921,174.95,174.74,2.0619]
[1740155773595,0.03895918,174.86,174.83,0.04143347]
[1740155773797,0.03895918,174.86,174.74,2.0619]
[1740155773989,1.6921,174.95,174.74,2.0619]
[1740155774186,0.03716752,174.86,174.83,0.03778386]
[1740155774593,5.7156,174.92,174.74,2.0619]
[1740155774793,0.03754196,174.86,174.83,0.04286618]
[1740155774993,1.7673,174.94,174.74,2.0619]
[1740155775190,5.7162,174.91,174.74,2.0619]
[1740155775391,0.03621718,174.86,174.83,0.04091046]
[1740155775793,0.04352086,174.86,174.74,2.0619]
[1740155776192,0.03992594,174.82,174.74,2.0619]
[1740155776397,1.7673,174.94,174.74,2.0619]
[1740155777193,195.7673,174.94,174.74,2.0619]
[1740155777398,5.7177,174.86,174.81,5.7189]
[1740155777588,5.75758371,174.86,174.82,0.04247286]
[1740155777792,0.03988371,174.86,174.82,0.04247286]
[1740155779494,0.03988371,174.86,174.85,5.7179]
[1740155780501,0.03988371,174.86,174.82,0.04247286]
[1740155781595,0.03988371,174.86,174.84,5.718]
[1740155781806,0.03988371,174.86,174.82,0.04247286]
[1740155782294,0.03988371,174.86,174.74,1.8571]
[1740155782492,17.14,174.91,174.71,31.13590489]
[1740155782691,34.28,174.89,174.71,31.13590489]
[1740155782899,34.28,174.86,174.71,31.13590489]
[1740155783104,5.722,174.73,174.68,89.76626715]
[1740155783301,17.14,174.84,174.68,89.76626715]
[1740155783505,0.04264311,174.72,174.69,0.03933563]
[1740155783702,1.05165619,174.83,174.68,89.76626715]
[1740155784102,0.04326616,174.72,174.69,0.03972616]
[1740155784296,1.05165619,174.83,174.68,89.76626715]
[1740155784497,0.04271164,174.77,174.74,3.307e-05]
[1740155785995,0.04271164,174.77,174.76,5.7208]
[1740155786306,0.04271164,174.77,174.74,3.307e-05]
[1740155786603,1.7363,174.88,174.83,5.7184]
[1740155787005,1.7363,174.88,174.75,2.0233]
[1740155787200,1.7363,174.88,174.75,5.7208]
[1740155787402,1.8193,174.87,174.66,2.0744]
[1740155787605,5.7198,174.8,174.66,2.0744]
[1740155787806,0.04151495,174.78,174.75,0.04018938]
[1740155787999,1.8193,174.87,174.66,2.0744]
[1740155788305,0.03947545,174.78,174.75,5.7599654]
[1740155788505,0.03947545,174.78,174.75,0.0391654]
[1740155788706,5.7189,174.82,174.66,2.0744]
[1740155788899,0.03624637,174.78,174.75,5.7604586]
[1740155789093,1.8193,174.87,174.75,5.7604586]
[1740155789295,1.8193,174.87,174.66,2.0744]
[1740155789496,0.03902917,174.78,174.75,0.03697691]
[1740155789804,1.05150098,174.86,174.66,2.0744]
[1740155789999,0.04046586,174.78,174.75,0.03876472]
[1740155790401,1.05150098,174.86,174.66,2.0744]
[1740155790601,0.03719801,174.78,174.75,0.043568]
[1740155790804,10.18,174.86,174.66,2.0744]
[1740155791005,0.0385714,174.78,174.75,0.04085528]
[1740155791502,0.0418436,174.78,174.77,5.7205]
[1740155792002,0.0418436,174.78,174.75,0.04279831]
[1740155793407,0.0418436,174.78,174.67,1.7683]
[1740155793610,5.7223,174.72,174.62,0.2448]
[1740155793800,3.5503,174.77,174.62,3.7816]
[1740155794508,0.0372115,174.71,174.68,0.03935621]
[1740155795201,5.7599115,174.71,174.68,0.03935621]
[1740155795410,0.0372115,174.71,174.68,0.03935621]
[1740155795800,5.7600115,174.71,174.68,0.03935621]
[1740155796008,0.0372115,174.71,174.68,0.03935621]
[1740155796702,0.0372115,174.71,174.68,5.76255621]
[1740155796902,0.0372115,174.71,174.68,0.03935621]
[1740155798599,0.0372115,174.71,174.68,5.76275621]
[1740155798805,0.0372115,174.71,174.68,0.03935621]
[1740155799107,5.7599115,174.71,174.68,0.03935621]
[1740155799608,0.0372115,174.71,174.68,0.03935621]
[1740155799803,5.7231,174.69,174.68,0.03935621]
[1740155800005,0.0372115,174.71,174.6,3.5585]
[1740155800302,3.5503,174.77,174.63,5.7248]
[1740155800499,211.14,174.76,174.58,0.57481734]
[1740155800706,11.21210118,174.75,174.58,0.57481734]
[1740155800908,10.16,174.75,174.58,0.57481734]
[1740155801311,0.04193742,174.68,174.65,0.043328]
[1740155801604,10.16,174.75,174.65,0.043328]
[1740155801811,0.04020004,174.68,174.65,0.043328]
[1740155802207,10.16,174.75,174.65,0.043328]
[1740155802809,5.7231,174.7,174.66,5.7239]
[1740155803005,0.03700106,174.72,174.58,0.57481734]
[1740155803210,5.7222,174.72,174.68,5.7231]
[1740155803411,0.03685283,174.67,174.66,0.03824152]
[1740155803710,5.7224,174.72,174.66,0.03824152]
[1740155803910,0.04361035,174.68,174.66,0.03824152]
[1740155804609,0.04361035,174.68,174.67,5.7238]
[1740155804808,0.04361035,174.68,174.66,0.03824152]
[1740155805107,0.04361035,174.68,174.67,5.7238]
[1740155807110,0.04361035,174.68,174.66,0.03824152]
[1740155807506,0.04361035,174.68,174.67,5.7238]
[1740155807910,5.7216,174.74,174.66,0.03824152]
[1740155808110,5.7216,174.74,174.7,5.7225]
[1740155808312,3.5503,174.77,174.59,11.4525]
[1740155808506,5.7213,174.75,174.58,0.57481734]
[1740155808911,5.7202,174.78,174.58,192.57481734]
[1740155809114,1.7092,174.8,174.65,0.04204973]
[1740155809309,1.7092,174.8,174.75,5.7209]
[1740155809508,5.7205,174.77,174.66,3.5179]
[1740155809704,1.7092,174.8,174.66,3.5179]
[1740155810309,0.0414153,174.75,174.71,0.039342]
[1740155810514,0.0414153,174.75,174.74,5.7213]
[1740155810709,0.0414153,174.75,174.71,0.039342]
[1740155811615,0.0414153,174.75,174.74,5.7215]
[1740155813110,0.0414153,174.75,174.72,5.7219]
[1740155813316,0.0414153,174.75,174.71,0.039342]
[1740155813709,5.7215,174.74,174.71,0.039342]
[1740155814112,0.0414153,174.75,174.71,0.039342]
[1740155814710,0.0414153,174.75,174.74,5.7215]
[1740155815315,3.5726,174.86,174.71,0.039342]
[1740155815516,3.5726,174.86,174.66,14.9656]
[1740155815919,5.72,174.79,174.75,5.7209]
[1740155816221,3.5726,174.86,174.67,11.4475]
[1740155816516,0.03869458,174.79,174.75,0.03714646]
[1740155816712,0.03869458,174.79,174.67,11.4475]
[1740155816914,5.7202,174.79,174.75,5.76021238]
[1740155817106,0.03884565,174.75,174.67,11.4475]
[1740155817307,3.5726,174.86,174.66,3.5179]
[1740155817511,0.03725048,174.73,174.69,0.03884424]
[1740155817710,1.05158114,174.84,174.66,3.5179]
[1740155817916,0.03916561,174.73,174.69,0.0393073]
[1740155818115,11.4361,174.85,174.66,3.5179]
[1740155818320,11.4361,174.85,174.69,0.03694497]
[1740155818617,11.4361,174.85,174.75,0.04311092]
[1740155818618,0.04243502,174.77,174.75,0.04311092]
[1740155818818,11.4361,174.85,174.75,0.04311092]
[1740155819015,0.04342958,174.78,174.7,5.7226]
[1740155819221,11.4361,174.85,174.66,3.5179]
[1740155819614,5.7205,174.77,174.73,5.7215]
[1740155819811,11.4361,174.85,174.73,5.7215]
[1740155820116,5.7207,174.77,174.73,5.7215]
[1740155820314,0.03693073,174.81,174.75,5.7211]
[1740155820514,0.0439089,174.8,174.73,0.04126829]
[1740155820716,5.7208,174.77,174.73,5.7215]
[1740155821019,0.03982509,174.78,174.75,0.03883393]
[1740155821221,11.4361,174.85,174.66,3.5179]
[1740155821414,0.04130588,174.78,174.75,0.03626546]
[1740155821610,3.5726,174.86,174.67,11.4475]
[1740155821816,0.03933437,174.78,174.75,0.04169305]
[1740155822017,3.5726,174.86,174.67,11.4475]
[1740155822320,0.03985027,174.78,174.75,0.04314418]
[1740155822517,0.03985027,174.78,174.66,3.5179]
[1740155822712,17.14,174.83,174.66,3.5179]
[1740155822917,5.7231,174.69,174.66,1.7877]
[1740155823125,17.14,174.83,174.62,9.60506682]
[1740155823427,10.14,174.8,174.68,5.7232]
[1740155823628,2.87009126,174.79,174.62,1.833]
[1740155823830,0.04089275,174.74,174.71,0.0367598]
[1740155825028,0.04089275,174.74,174.73,5.7218]
[1740155825230,10.14,174.88,174.71,0.0367598]
[1740155825231,3.6176,174.85,174.71,0.0367598]
[1740155825427,3.6176,174.85,174.68,0.3701]
[1740155826435,0.041007,174.78,174.75,0.04129971]
[1740155826634,3.6176,174.85,174.75,0.04129971]
[1740155826932,0.04356413,174.78,174.77,5.7205]
[1740155827130,3.6176,174.85,174.68,0.3701]
[1740155827338,5.76034082,174.79,174.76,0.0390585]
[1740155827536,0.04024082,174.79,174.76,0.0390585]
[1740155828237,0.04024082,174.79,174.77,5.7204]
[1740155828436,0.04024082,174.79,174.76,0.0390585]
[1740155829841,1.7879,174.9,174.76,0.0390585]
[1740155830042,1.7879,174.9,174.68,0.3701]
[1740155830043,7.5042,174.9,174.71,149.74]
[1740155830443,7.5042,174.9,174.72,1.7328]
[1740155830644,7.5042,174.9,174.85,5.7177]
[1740155830944,0.03971945,174.89,174.86,0.03716979]
[1740155831244,1.7879,174.9,174.72,13.1768]
[1740155831442,0.04174928,174.89,174.86,0.04257178]
[1740155831740,5.7172,174.87,174.72,1.7328]
[1740155832048,1.7879,174.9,174.72,1.7328]
[1740155832241,3.793e-05,174.81,174.78,0.04111244]
[1740155832441,1.7879,174.9,174.83,5.7184]
[1740155832840,1.7879,174.9,174.72,1.7328]
[1740155833042,1.7879,174.9,174.83,5.7182]
[1740155833339,0.03598796,174.88,174.85,0.03763693]
[1740155833543,1.7879,174.9,174.72,1.7328]
[1740155833843,0.03598796,174.88,174.85,0.04310589]
[1740155834039,7.5043,174.9,174.86,5.7175]
[1740155834343,0.03598796,174.88,174.86,5.7175]
[1740155834544,5.75298796,174.88,174.85,0.03947318]
[1740155834740,0.03598796,174.88,174.85,0.03947318]
[1740155835038,5.7185,174.84,174.79,5.7197]
[1740155835246,1.7879,174.9,174.72,1.7328]
[1740155835547,1.7763,174.83,174.72,1.7328]
[1740155835741,5.7205,174.77,174.71,149.74]
[1740155835941,1.7114,174.82,174.71,149.74]
[1740155836344,0.03964508,174.76,174.75,5.7209]
[1740155836542,1.7114,174.82,174.71,149.74]
[1740155836743,0.03733957,174.77,174.74,0.03671523]
[1740155837444,0.03733957,174.77,174.76,5.7208]
[1740155837841,3.4876,174.89,174.74,0.03671523]
[1740155838044,3.4876,174.89,174.71,149.74]
[1740155838445,1.7114,174.89,174.71,149.74]
[1740155838646,1.7114,174.89,174.73,11.4436]
[1740155838845,18.9162,174.98,174.71,149.74]
[1740155839046,2.157e-05,174.83,174.79,0.03841804]
[1740155839239,1.7704,174.97,174.77,10.12]
[1740155839444,1.7704,174.97,174.78,0.4077]
[1740155840045,7.4844,174.97,174.91,5.7157]
[1740155840450,1.7704,174.97,174.78,0.4077]
[1740155840649,1.7704,174.97,174.92,0.04288491]
[1740155840849,1.7704,174.97,174.79,11.4396]
[1740155841149,1.7704,174.97,174.93,0.03848188]
[1740155841352,1.7704,174.97,174.78,0.4077]
[1740155841549,1.7704,174.97,174.93,0.04275623]
[1740155841846,1.7704,174.97,174.78,0.4077]
[1740155842848,1.7704,174.97,174.86,0.03706532]
[1740155842849,0.03734399,174.89,174.86,0.03706532]
[1740155843052,1.7704,174.97,174.78,2.1615]
[1740155843249,1.7704,174.97,174.86,0.0414647]
[1740155843250,0.04111894,174.89,174.86,0.0414647]
[1740155843550,1.7704,174.97,174.78,2.1615]
[1740155843750,0.04219926,174.89,174.86,0.04269489]
[1740155844050,3.5,174.97,174.78,2.1615]
[1740155844246,3.5,174.97,174.86,0.04390375]
[1740155844247,0.03696145,174.89,174.86,0.04390375]
[1740155844450,3.5,174.97,174.78,2.1615]
[1740155844651,0.0427778,174.89,174.86,0.04134636]
[1740155844858,3.5,174.97,174.78,2.1615]
[1740155845150,0.0377516,174.89,174.86,0.042757]
[1740155845347,1.8726,175.0,174.78,2.1615]
[1740155845552,1.8726,175.0,174.86,0.04014812]
[1740155845553,0.03639831,174.89,174.86,0.04014812]
[1740155845748,5.7147,174.95,174.78,2.1615]
[1740155845949,0.04161629,174.89,174.86,0.0420347]
[1740155846847,0.04161629,174.89,174.86,5.7593347]
[1740155847550,0.04161629,174.89,174.86,0.0420347]
[1740155847750,0.04161629,174.89,174.87,5.7169]
[1740155848145,0.04161629,174.89,174.86,0.0420347]
[1740155848951,0.04161629,174.89,174.78,1.7538]
[1740155849150,10.12,174.95,174.75,1.7926]
[1740155849345,4.55010704,174.94,174.75,1.7926]
[1740155849653,3.4994,174.94,174.75,1.7926]
[1740155850153,0.03774393,174.86,174.83,0.04082833]
[1740155850353,0.03774393,174.86,174.83,5.75902833]
[1740155850652,0.04294522,174.86,174.83,0.04398613]
[1740155850858,5.7179,174.85,174.83,0.04398613]
[1740155851053,0.04294522,174.86,174.83,0.04398613]
[1740155852754,5.76054522,174.86,174.83,0.04398613]
[1740155852956,0.04294522,174.86,174.83,0.04398613]
[1740155853455,5.76054522,174.86,174.83,0.04398613]
[1740155854161,0.04294522,174.86,174.83,0.04398613]
[1740155854657,0.04294522,174.86,174.83,5.76228613]
[1740155855156,0.04294522,174.86,174.83,0.04398613]
[1740155855553,0.04294522,174.86,174.71,151.4776]
[1740155855754,211.14,174.92,174.78,5.7199]
[1740155855960,194.0,174.91,174.71,151.4776]
[1740155856659,0.03970731,174.83,174.79,0.03649567]
[1740155856860,0.03970731,174.83,174.71,151.4776]
[1740155857154,1.0511909,174.9,174.71,151.4776]
[1740155857554,211.14,174.92,174.71,151.4776]
[1740155857754,1.051165,174.91,174.71,151.4776]
[1740155858160,0.04293448,174.83,174.79,5.76362765]
[1740155858355,5.7183,174.84,174.79,5.7197]
[1740155858560,0.03792789,174.83,174.79,5.76005288]
[1740155858962,0.03792789,174.83,174.79,0.04035288]
[1740155859654,5.75652789,174.83,174.79,0.04035288]
[1740155859959,0.03792789,174.83,174.82,5.7189]
[1740155861660,0.03792789,174.83,174.79,0.04035288]
[1740155861861,0.03792789,174.83,174.8,5.7194]
[1740155862252,0.03792789,174.83,174.79,5.76015288]
[1740155862451,0.03792789,174.83,174.79,0.04035288]
[1740155862855,5.7189,174.82,174.79,0.04035288]
[1740155863056,0.03792789,174.83,174.79,0.04035288]
[1740155863251,0.03792789,174.83,174.8,5.7192]
[1740155863551,0.03792789,174.83,174.79,0.04035288]
[1740155864354,5.7189,174.82,174.79,0.04035288]
[1740155864654,0.03792789,174.83,174.79,0.04035288]
[1740155865061,0.03792789,174.83,174.8,5.7192]
[1740155865456,0.03792789,174.83,174.79,0.04035288]
[1740155865658,5.75652789,174.83,174.79,0.04035288]
[1740155866354,0.03792789,174.83,174.79,0.04035288]
[1740155867061,0.03792789,174.83,174.79,5.75995288]
[1740155867762,0.03792789,174.83,174.79,0.04035288]
[1740155869260,5.75652789,174.83,174.79,0.04035288]
[1740155869659,0.03792789,174.83,174.79,5.76015288]
[1740155871364,0.03792789,174.83,174.79,0.04035288]
[1740155872364,0.03792789,174.83,174.79,5.76015288]
[1740155873059,5.7189,174.82,174.79,0.04035288]
[1740155873260,0.03792789,174.83,174.79,0.04035288]
[1740155873564,5.75652789,174.83,174.79,0.04035288]
[1740155873766,0.03792789,174.83,174.79,0.04035288]
[1740155873961,0.03792789,174.83,174.71,151.4776]
[1740155874162,212.19117325,174.89,174.71,149.74]
[1740155874365,1.05117325,174.88,174.71,149.74]
[1740155874664,17.14,174.86,174.67,62.17653456]
[1740155874865,215.77511559,174.85,174.67,62.17653456]
[1740155875168,0.03863992,174.78,174.75,1.746e-05]
[1740155875561,27.24,174.8,174.75,1.746e-05]
[1740155875866,1.05191181,174.79,174.75,1.746e-05]
[1740155876065,5.7208,174.76,174.75,1.746e-05]
[1740155876362,0.04254038,174.77,174.68,4.96078428]
[1740155876567,5.7234,174.68,174.67,20.50560046]
[1740155876764,5.7234,174.68,174.67,7.51200046]
[1740155876969,5.7234,174.68,174.67,4.6e-07]
[1740155877767,5.7238,174.67,174.66,52.96947687]
[1740155877962,5.7238,174.67,174.66,0.04314185]
[1740155878171,0.03689408,174.69,174.5,52.92633502]
[1740155878669,1.0524104,174.74,174.5,52.92633502]
[1740155879072,1.05242538,174.73,174.5,52.92633502]
[1740155879373,5.7251,174.63,174.62,5.167e-05]
[1740155879573,1.05286291,174.63,174.5,52.92633502]
[1740155879772,10.1,174.65,174.51,5.729]
[1740155879971,10.1,174.65,174.5,52.92633502]
[1740155880474,0.03962421,174.59,174.56,0.03756043]
[1740155880667,0.03962421,174.59,174.58,5.7267]
[1740155880872,5.7238,174.68,174.56,0.03756043]
[1740155881175,194.0,174.72,174.61,5.7257]
[1740155881475,5.7241,174.66,174.48,1.8366]
[1740155881668,149.76,174.73,174.48,1.8366]
[1740155881870,1.05234274,174.72,174.48,1.8366]
[1740155882070,0.03764071,174.62,174.59,0.03829626]
[1740155882366,194.0,174.71,174.48,1.8366]
[1740155882571,0.04018254,174.62,174.59,0.04310942]
[1740155882767,0.04018254,174.62,174.49,149.78]
[1740155882969,5.7241,174.67,174.58,5.7266]
[1740155883167,0.03664309,174.62,174.58,5.7266]
[1740155883368,194.0,174.71,174.63,0.04168203]
[1740155883573,0.0381632,174.62,174.61,5.7257]
[1740155883770,194.0,174.71,174.49,149.78]
[1740155883970,0.03999852,174.63,174.6,0.03939034]
[1740155884166,194.0,174.71,174.57,5.7269]
[1740155884369,5.7244,174.66,174.49,149.78]
[1740155884571,0.04100697,174.63,174.6,0.03911185]
[1740155884771,194.0,174.71,174.49,149.78]
[1740155884973,0.042942,174.63,174.6,0.03773146]
[1740155885171,194.0,174.71,174.49,149.78]
[1740155885478,5.76220201,174.63,174.6,0.03848266]
[1740155885869,211.14,174.71,174.6,0.04276224]
[1740155886176,194.0,174.71,174.49,149.78]
[1740155886373,0.0375648,174.67,174.64,0.04273262]
[1740155886672,1.0524207,174.7,174.49,149.78]
[1740155886877,194.0,174.71,174.57,5.727]
[1740155887073,0.03930947,174.61,174.58,0.04071489]
[1740155887470,18.19257876,174.68,174.51,5.729]
[1740155887670,5.7264,174.59,174.58,0.03726493]
[1740155887876,17.14,174.66,174.51,5.7287]
[1740155888073,5.7254,174.62,174.48,1.8366]
[1740155888269,1.05272446,174.65,174.48,1.8366]
[1740155888270,194.0,174.67,174.48,1.8366]
[1740155888469,10.08,174.69,174.48,1.8366]
[1740155888676,5.7241,174.67,174.48,1.8366]
[1740155888877,194.0,174.75,174.48,1.8366]
[1740155889078,0.03776007,174.6,174.58,5.7266]
[1740155889474,5.725,174.64,174.58,5.7266]
[1740155889670,0.04260919,174.61,174.58,5.7266]
[1740155889875,0.04260919,174.61,174.57,0.03649026]
[1740155890078,1.05226792,174.74,174.57,0.03649026]